bitfinex-derivatives/quotes_BTCF0:USTF0_20220103
["timestamp","ask_amount","ask_price","bid_price","bid_amount"]
[1641220883681,0.83856994,47192.0,47189.0,0.31333567]
[1641220883881,0.83856994,47192.0,47181.0,0.02119045]
[1641220884083,0.83856994,47192.0,47181.0,0.18]
[1641220884282,0.12,47191.0,47180.0,0.82027669]
[1641220884482,0.001,47186.0,47181.0,0.5867853]
[1641220884683,0.001,47182.0,47181.0,0.7637853]
[1641220884882,0.07843,47182.0,47181.0,0.7637853]
[1641220885882,1.3679691,47182.0,47179.0,0.14033567]
[1641220886081,0.001,47180.0,47179.0,0.14033567]
[1641220886584,0.086,47180.0,47179.0,0.32633567]
[1641220887084,1.28554182,47180.0,47179.0,0.32633567]
[1641220888584,0.184,47180.0,47179.0,0.32633567]
[1641220888884,0.27399728,47180.0,47179.0,0.32633567]
[1641220889986,0.09099728,47180.0,47179.0,0.14033567]
[1641220890286,0.08999728,47180.0,47179.0,0.14033567]
[1641220890685,0.26599728,47180.0,47179.0,0.32633567]
[1641220891286,0.26699728,47180.0,47179.0,0.32633567]
[1641220891487,1.46660121,47180.0,47179.0,0.32633567]
[1641220891684,1.46660121,47180.0,47179.0,0.186]
[1641220891888,1.29060121,47180.0,47177.0,0.14033567]
[1641220892086,0.001,47178.0,47177.0,0.14033567]
[1641220892486,0.001,47178.0,47176.0,0.5867853]
[1641220892688,0.178,47178.0,47177.0,0.174]
[1641220892890,0.179,47178.0,47177.0,0.174]
[1641220893489,0.26899728,47178.0,47177.0,0.174]
[1641220893991,0.09099728,47178.0,47173.0,0.26033567]
[1641220894189,0.08999728,47178.0,47173.0,0.26033567]
[1641220894689,0.25299728,47178.0,47173.0,0.44433567]
[1641220894890,1.45268904,47178.0,47173.0,1.03112097]
[1641220895889,1.28968904,47178.0,47174.0,0.31731]
[1641220896089,0.83977879,47176.0,47174.0,0.31731]
[1641220896290,0.08999728,47177.0,47174.0,0.31731]
[1641220896492,0.14033567,47183.0,47174.0,0.32931292]
[1641220896690,0.12,47184.0,47174.0,0.52231292]
[1641220896892,1.19961795,47179.0,47175.0,0.59878822]
[1641220897291,1.19961795,47179.0,47176.0,0.319671]
[1641220897992,1.19961795,47179.0,47177.0,0.18]
[1641220898193,2.36933939,47194.0,47178.0,0.009794]
[1641220898396,0.81264211,47194.0,47186.0,0.14033567]
[1641220898593,0.81264211,47194.0,47186.0,0.22786567]
[1641220898792,0.81264211,47194.0,47187.0,0.317168]
[1641220900497,0.12,47193.0,47187.0,0.317168]
[1641220900694,0.87264211,47194.0,47187.0,0.497168]
[1641220900695,0.183,47194.0,47187.0,0.497168]
[1641220900896,0.183,47194.0,47187.0,0.18]
[1641220901895,0.18,47194.0,47186.0,0.14033567]
[1641220902094,0.02119195,47195.0,47186.0,0.14033567]
[1641220902696,0.19519195,47195.0,47186.0,0.31933567]
[1641220903301,0.12,47193.0,47186.0,0.31933567]
[1641220903699,0.19519195,47195.0,47186.0,0.31933567]
[1641220903900,0.12,47193.0,47186.0,0.14033567]
[1641220904099,0.12,47193.0,47187.0,0.318591]
[1641220904600,0.178,47193.0,47187.0,0.500591]
[1641220905002,0.178,47193.0,47187.0,0.72233144]
[1641220905201,0.298,47193.0,47187.0,0.72233144]
[1641220905802,0.298,47193.0,47187.0,0.40374044]
[1641220906102,1.19941237,47188.0,47187.0,0.22174044]
[1641220906502,0.12,47193.0,47187.0,0.22174044]
[1641220906702,0.154,47188.0,47187.0,0.40974044]
[1641220908002,0.009794,47196.0,47187.0,0.71927144]
[1641220908203,1.19913789,47189.0,47187.0,0.61063144]
[1641220908404,0.95187865,47189.0,47187.0,0.79063144]
[1641220908603,0.02119089,47198.0,47188.0,0.009794]
[1641220908604,0.178,47196.0,47188.0,0.009794]
[1641220909016,0.83906528,47191.0,47189.0,0.319607]
[1641220910719,0.83383151,47201.0,47189.0,0.508607]
[1641220910720,0.83906528,47193.0,47189.0,0.508607]
[1641220912018,0.83906528,47193.0,47189.0,0.319607]
[1641220912422,0.83906528,47192.0,47189.0,0.319607]
[1641220912619,0.83906528,47192.0,47191.0,0.14033567]
[1641220912918,0.83906528,47192.0,47191.0,0.45170867]
[1641220913119,0.83906528,47193.0,47191.0,0.45170867]
[1641220914121,0.0211894,47201.0,47191.0,0.45170867]
[1641220914721,0.3241894,47201.0,47191.0,0.62870867]
[1641220915122,0.83902054,47193.0,47191.0,0.62870867]
[1641220916024,0.83902054,47193.0,47191.0,0.45170867]
[1641220916524,0.83902054,47193.0,47191.0,0.14033567]
[1641220916723,0.83902054,47193.0,47191.0,0.32733567]
[1641220917123,1.19864406,47193.0,47191.0,0.32733567]
[1641220917925,1.19864406,47193.0,47191.0,0.14033567]
[1641220918627,0.83902602,47192.0,47191.0,0.32833567]
[1641220920033,0.83902602,47192.0,47191.0,0.14033567]
[1641220920233,1.19864406,47194.0,47191.0,0.14033567]
[1641220920434,1.19864406,47193.0,47191.0,0.14033567]
[1641220920632,1.19864406,47193.0,47191.0,0.32833567]
[1641220921333,1.19864406,47193.0,47191.0,0.188]
[1641220922233,1.19864406,47193.0,47190.0,0.33730491]
[1641220922434,1.19864406,47192.0,47190.0,0.33730491]
[1641220922636,1.19864406,47192.0,47191.0,0.181]
[1641220923436,1.28864378,47192.0,47191.0,0.181]
[1641220923635,0.08999972,47192.0,47191.0,0.181]
[1641220924036,0.08999972,47192.0,47186.0,0.14033567]
[1641220924235,0.08999972,47192.0,47186.0,0.72657418]
[1641220924635,0.27199972,47192.0,47186.0,0.91257418]
[1641220925537,0.182,47192.0,47186.0,0.91257418]
[1641220925737,0.182,47192.0,47186.0,0.32633567]
[1641220925939,0.08999972,47193.0,47186.0,0.14033567]
[1641220926137,0.08999972,47191.0,47186.0,0.14033567]
[1641220926638,0.27299972,47191.0,47186.0,0.32733567]
[1641220927240,0.183,47191.0,47186.0,0.32733567]
[1641220928041,0.14033567,47194.0,47186.0,0.14033567]
[1641220928641,0.31333567,47194.0,47186.0,0.31833567]
[1641220929244,0.08999972,47193.0,47186.0,0.90457418]
[1641220930042,0.08999972,47193.0,47186.0,0.72657418]
[1641220930643,0.26799972,47193.0,47187.0,0.91910671]
[1641220931245,0.08999972,47192.0,47187.0,0.58623851]
[1641220931443,0.08999972,47192.0,47186.0,0.90657418]
[1641220931943,0.08999972,47192.0,47186.0,0.72657418]
[1641220932745,0.26699972,47192.0,47186.0,0.90857418]
[1641220933146,0.177,47192.0,47186.0,0.90857418]
[1641220933545,0.021194,47191.0,47186.0,0.90857418]
[1641220933745,0.109384,47191.0,47186.0,0.90857418]
[1641220933946,0.19938372,47191.0,47186.0,0.90857418]
[1641220934145,0.19938372,47191.0,47186.0,0.72657418]
[1641220934545,0.109384,47191.0,47186.0,0.14033567]
[1641220934746,0.18,47188.0,47186.0,0.184]
[1641220934946,0.02119589,47187.0,47186.0,0.184]
[1641220935146,0.02219589,47187.0,47186.0,0.184]
[1641220935445,0.001,47187.0,47186.0,0.184]
[1641220936044,0.001,47187.0,47183.0,0.58623851]
[1641220936245,0.181,47184.0,47183.0,0.58623851]
[1641220936448,0.18,47184.0,47178.0,0.72657418]
[1641220936646,0.18,47184.0,47183.0,0.111]
[1641220937647,0.181,47184.0,47183.0,0.111]
[1641220938047,0.181,47184.0,47178.0,0.72657418]
[1641220938252,0.001,47179.0,47178.0,0.14033567]
[1641220938447,0.08543,47179.0,47178.0,0.14033567]
[1641220938647,0.08543,47179.0,47178.0,0.30733567]
[1641220938850,0.17542972,47179.0,47178.0,0.30733567]
[1641220939048,1.37447343,47179.0,47178.0,0.30733567]
[1641220940047,1.37447343,47179.0,47178.0,0.14033567]
[1641220940549,1.56426743,47179.0,47174.0,0.14033567]
[1641220940748,0.001,47175.0,47174.0,0.14033567]
[1641220940952,0.20133567,47175.0,47172.0,0.02]
[1641220941250,0.001,47173.0,47172.0,0.02]
[1641220941850,0.121,47173.0,47170.0,0.58623851]
[1641220942051,0.0812032,47171.0,47164.0,0.58999816]
[1641220942249,1.29883743,47174.0,47164.0,0.58999816]
[1641220942250,0.08120508,47166.0,47164.0,0.58999816]
[1641220942452,0.09036908,47166.0,47164.0,0.58999816]
[1641220942651,0.001,47165.0,47164.0,0.67699816]
[1641220943453,0.001,47165.0,47164.0,0.087]
[1641220944057,0.001,47165.0,47156.0,0.14033567]
[1641220944258,1.28941279,47166.0,47156.0,0.14033567]
[1641220944460,0.001,47162.0,47156.0,0.14033567]
[1641220944861,0.001,47162.0,47161.0,0.27733567]
[1641220945662,0.27599972,47165.0,47161.0,0.27733567]
[1641220945861,0.9295507,47162.0,47161.0,0.27733567]
[1641220946064,0.9295507,47162.0,47161.0,0.14033567]
[1641220946763,0.99555098,47162.0,47161.0,0.30033567]
[1641220946960,0.99655098,47162.0,47161.0,0.30033567]
[1641220947361,1.0865507,47162.0,47161.0,0.30033567]
[1641220948166,0.9305507,47162.0,47161.0,0.14033567]
[1641220948767,1.0975507,47162.0,47161.0,0.30433567]
[1641220949369,1.0965507,47162.0,47161.0,0.30433567]
[1641220950169,0.83955098,47162.0,47161.0,0.14033567]
[1641220950374,0.35977699,47163.0,47161.0,0.14033567]
[1641220950771,0.35977699,47163.0,47161.0,0.33133567]
[1641220951976,0.35977699,47162.0,47161.0,0.33133567]
[1641220952174,0.35977699,47162.0,47161.0,0.14033567]
[1641220952375,0.09004879,47165.0,47161.0,0.14033567]
[1641220952574,0.09004879,47167.0,47161.0,1.20599015]
[1641220952773,0.09004879,47167.0,47161.0,1.39699015]
[1641220952973,0.11125342,47167.0,47161.0,1.39699015]
[1641220953374,0.11125342,47167.0,47162.0,0.83572536]
[1641220954175,0.09004879,47167.0,47162.0,0.83572536]
[1641220954578,0.181,47163.0,47162.0,0.83572536]
[1641220954877,0.29166672,47163.0,47162.0,0.98672536]
[1641220955078,0.43200239,47163.0,47162.0,0.98672536]
[1641220955481,0.43200239,47163.0,47160.0,0.82073391]
[1641220955680,0.001,47161.0,47160.0,0.82073391]
[1641220956082,0.001,47161.0,47158.0,0.59139274]
[1641220956283,0.001,47159.0,47158.0,0.59139274]
[1641220956683,0.188,47159.0,47158.0,0.59139274]
[1641220957285,0.188,47159.0,47156.0,0.82073391]
[1641220957685,0.188,47159.0,47154.0,0.82073391]
[1641220957882,0.001,47155.0,47154.0,0.82073391]
[1641220958283,0.001,47155.0,47152.0,2.13459027]
[1641220958486,0.001,47153.0,47152.0,0.96106958]
[1641220958787,0.08261,47153.0,47152.0,0.96106958]
[1641220958984,0.08161,47153.0,47152.0,0.96106958]
[1641220959585,0.193,47155.0,47152.0,0.96106958]
[1641220960085,0.16154424,47158.0,47152.0,0.96106958]
[1641220960286,0.001,47153.0,47152.0,0.96106958]
[1641220960485,0.16154424,47158.0,47152.0,0.14033567]
[1641220960685,0.189,47153.0,47152.0,0.14033567]
[1641220962087,0.001,47153.0,47152.0,0.14033567]
[1641220962789,0.19,47153.0,47152.0,0.14033567]
[1641220964189,0.001,47153.0,47152.0,0.14033567]
[1641220964789,0.189,47153.0,47152.0,0.14033567]
[1641220966191,0.001,47153.0,47152.0,0.14033567]
[1641220966792,0.191,47153.0,47152.0,0.14033567]
[1641220967793,0.191,47153.0,47152.0,0.32259539]
[1641220968194,0.001,47153.0,47152.0,0.32259539]
[1641220968896,0.192,47153.0,47152.0,0.32259539]
[1641220970096,0.001,47153.0,47152.0,0.32259539]
[1641220970494,0.001,47153.0,47152.0,0.14033567]
[1641220970894,0.184,47153.0,47152.0,0.14033567]
[1641220971997,0.184,47153.0,47152.0,0.45884567]
[1641220972199,0.001,47153.0,47152.0,0.63884567]
[1641220972397,0.001,47153.0,47152.0,0.45884567]
[1641220972799,0.199,47153.0,47152.0,0.45884567]
[1641220974202,0.001,47153.0,47152.0,0.51884567]
[1641220974600,0.001,47153.0,47152.0,0.45884567]
[1641220974801,0.194,47153.0,47152.0,0.51884567]
[1641220975902,0.194,47153.0,47152.0,0.45884567]
[1641220976102,0.194,47153.0,47152.0,0.51884567]
[1641220976317,0.001,47153.0,47152.0,0.51884567]
[1641220976905,0.199,47153.0,47152.0,0.51884567]
[1641220977104,0.199,47153.0,47152.0,0.45884567]
[1641220977305,0.199,47153.0,47152.0,0.51884567]
[1641220978113,0.001,47153.0,47152.0,0.51884567]
[1641220978911,0.199,47153.0,47152.0,0.53085271]
[1641220979113,0.14033567,47158.0,47152.0,0.53085271]
[1641220979114,0.14033567,47158.0,47157.0,0.22511064]
[1641220979314,0.14133567,47158.0,47157.0,0.22511064]
[1641220979513,0.14033567,47158.0,47155.0,0.12]
[1641220980317,0.14033567,47158.0,47156.0,0.318293]
[1641220980514,0.14033567,47158.0,47156.0,0.378293]
[1641220980714,0.001,47157.0,47156.0,0.318293]
[1641220980914,0.001,47157.0,47156.0,0.505293]
[1641220981115,0.14033567,47158.0,47156.0,0.505293]
[1641220981315,0.14033567,47158.0,47156.0,0.187]
[1641220981514,0.14033567,47158.0,47157.0,0.318107]
[1641220981717,0.14133567,47158.0,47157.0,0.318107]
[1641220981914,0.14133567,47158.0,47156.0,0.187]
[1641220982113,0.001,47157.0,47156.0,0.187]
[1641220982315,0.001,47157.0,47152.0,0.76932737]
[1641220982515,0.14033567,47158.0,47152.0,0.76932737]
[1641220982715,0.14033567,47158.0,47153.0,0.01200685]
[1641220983115,0.14033567,47158.0,47153.0,0.32808085]
[1641220983617,0.35903627,47156.0,47154.0,0.82073391]
[1641220983823,0.35903627,47156.0,47155.0,0.59085105]
[1641220984923,0.35903627,47156.0,47155.0,0.78585105]
[1641220986131,1.92190209,47173.0,47158.0,0.30226919]
[1641220986328,1.9007,47173.0,47163.0,0.18]
[1641220986526,1.75789774,47176.0,47165.0,0.18]
[1641220986727,1.75789774,47176.0,47165.0,0.05735]
[1641220986925,1.00307362,47172.0,47165.0,0.05735]
[1641220987125,1.00307362,47172.0,47166.0,0.14033567]
[1641220987529,1.0931191,47172.0,47166.0,0.14033567]
[1641220988329,0.09004548,47171.0,47166.0,0.14033567]
[1641220988829,0.25704548,47171.0,47166.0,0.32533567]
[1641220990230,0.25704548,47171.0,47166.0,0.14033567]
[1641220990231,0.09004548,47171.0,47166.0,0.14033567]
[1641220990833,0.09004548,47171.0,47166.0,0.32833567]
[1641220991136,0.09004548,47170.0,47166.0,0.32833567]
[1641220991735,0.09004548,47170.0,47166.0,0.50833567]
[1641220991932,0.09004548,47170.0,47167.0,0.18]
[1641220992336,0.09004548,47170.0,47167.0,0.496573]
[1641220992736,0.09004548,47173.0,47167.0,0.496573]
[1641220992933,0.09004548,47173.0,47167.0,0.505573]
[1641220993434,0.09004548,47173.0,47167.0,0.685573]
[1641220993835,0.09004548,47176.0,47167.0,0.685573]
[1641220994135,0.09004548,47176.0,47167.0,0.505573]
[1641220994336,0.09004548,47176.0,47167.0,0.685573]
[1641220994535,0.83969768,47168.0,47167.0,0.316573]
[1641220994934,0.83969768,47168.0,47167.0,0.497573]
[1641220995134,1.19956811,47170.0,47167.0,0.497573]
[1641220995336,1.19956811,47169.0,47167.0,0.497573]
[1641220996136,1.19956811,47169.0,47167.0,0.316573]
[1641220996840,1.19956811,47169.0,47167.0,0.505573]
[1641220998141,1.19956811,47169.0,47167.0,0.316573]
[1641220998839,1.19956811,47169.0,47167.0,0.506573]
[1641220999742,1.19956811,47169.0,47167.0,0.93059454]
[1641221000142,0.77556639,47169.0,47167.0,0.93059454]
[1641221000342,0.83967799,47168.0,47167.0,0.93059454]
[1641221000942,0.83967799,47168.0,47167.0,0.93559454]
[1641221001144,0.83967799,47168.0,47167.0,0.195]
[1641221001346,0.83967799,47170.0,47167.0,0.195]
[1641221001545,0.83967799,47170.0,47167.0,0.25733]
[1641221002344,0.83967799,47170.0,47167.0,0.06233]
[1641221002544,0.83967799,47170.0,47168.0,0.319133]
[1641221002946,0.83967799,47170.0,47169.0,0.12]
[1641221003144,0.83967799,47170.0,47168.0,0.319133]
[1641221003344,0.83967799,47170.0,47167.0,0.25733]
[1641221003547,0.83967799,47171.0,47167.0,0.84818105]
[1641221003745,0.83967799,47171.0,47168.0,0.317645]
[1641221003946,0.83967799,47171.0,47169.0,0.12]
[1641221004147,0.83967799,47171.0,47168.0,0.317645]
[1641221004349,0.83967799,47171.0,47170.0,0.318027]
[1641221004550,0.83967799,47172.0,47168.0,0.90565105]
[1641221005047,0.83967799,47172.0,47170.0,0.191]
[1641221005248,0.09004548,47175.0,47170.0,0.191]
[1641221005649,0.09004548,47175.0,47170.0,1.01737253]
[1641221006255,0.09004548,47175.0,47170.0,0.82637253]
[1641221006450,0.09004548,47175.0,47171.0,0.88318251]
[1641221006948,0.09004548,47175.0,47171.0,1.06718251]
[1641221007450,0.12,47174.0,47171.0,1.06718251]
[1641221007652,0.19113,47174.0,47171.0,0.47824246]
[1641221007850,0.07113,47174.0,47166.0,0.14033567]
[1641221008052,0.18,47167.0,47166.0,0.14033567]
[1641221008650,0.190794,47167.0,47166.0,0.14033567]
[1641221009054,0.190794,47167.0,47162.0,0.14033567]
[1641221009055,0.380794,47167.0,47162.0,0.14033567]
[1641221009251,0.001,47163.0,47161.0,1.17991165]
[1641221009451,0.001,47162.0,47161.0,1.17991165]
[1641221009652,0.181,47162.0,47161.0,1.17991165]
[1641221010852,0.181,47162.0,47157.0,1.32024732]
[1641221011052,0.001,47158.0,47157.0,1.32024732]
[1641221011855,0.181,47158.0,47157.0,0.14033567]
[1641221012255,0.20220891,47158.0,47157.0,0.14033567]
[1641221013056,0.38520891,47158.0,47157.0,0.14033567]
[1641221014057,0.20520891,47158.0,47157.0,0.14033567]
[1641221014257,0.38520891,47158.0,47157.0,0.14033567]
[1641221014558,0.20520891,47158.0,47157.0,0.14033567]
[1641221014757,0.38520891,47158.0,47157.0,0.14033567]
[1641221015659,0.20520891,47158.0,47157.0,0.14033567]
[1641221015859,0.38520891,47158.0,47157.0,0.14033567]
[1641221016060,0.20520891,47158.0,47157.0,0.14033567]
[1641221016260,0.02220891,47158.0,47157.0,0.14033567]
[1641221017061,0.20720891,47158.0,47157.0,0.14033567]
[1641221017879,0.186,47158.0,47157.0,0.14033567]
[1641221018279,0.001,47158.0,47157.0,0.14033567]
[1641221018980,0.19,47158.0,47157.0,0.14033567]
[1641221019781,0.19,47158.0,47157.0,0.73081307]
[1641221020382,0.001,47158.0,47157.0,0.73081307]
[1641221020982,0.191,47158.0,47157.0,0.73081307]
[1641221022386,0.001,47158.0,47157.0,0.73081307]
[1641221023088,0.193,47158.0,47157.0,0.14033567]
[1641221023588,0.193,47158.0,47156.0,0.5904774]
[1641221023589,0.28304277,47158.0,47156.0,0.5904774]
[1641221023787,0.001,47157.0,47156.0,0.5904774]
[1641221023988,0.09104277,47157.0,47156.0,0.5904774]
[1641221024688,0.27104277,47157.0,47156.0,0.5904774]
[1641221025092,0.45904277,47157.0,47156.0,0.5904774]
[1641221025692,0.45904277,47157.0,47155.0,0.5904774]
[1641221025893,0.001,47156.0,47155.0,0.5904774]
[1641221026392,0.181,47156.0,47155.0,0.5904774]
[1641221026793,0.001,47156.0,47155.0,0.5904774]
[1641221026994,0.365,47156.0,47155.0,0.5904774]
[1641221027193,0.45504277,47156.0,47155.0,0.82670367]
[1641221027392,0.27504277,47156.0,47155.0,0.82670367]
[1641221028095,0.27504277,47156.0,47154.0,0.82670367]
[1641221028293,0.001,47155.0,47154.0,0.82670367]
[1641221028793,0.09104277,47155.0,47154.0,0.82670367]
[1641221028993,0.28004277,47155.0,47154.0,0.82670367]
[1641221029493,0.28004277,47155.0,47153.0,1.29923342]
[1641221029694,0.001,47154.0,47153.0,1.29923342]
[1641221030398,0.09104277,47154.0,47153.0,1.17991165]
[1641221030596,1.29161648,47154.0,47153.0,1.17991165]
[1641221030995,1.48261648,47154.0,47153.0,1.17991165]
[1641221031196,1.39257371,47154.0,47153.0,1.29923342]
[1641221031598,2.322744,47154.0,47153.0,2.12725372]
[1641221031797,1.12217029,47154.0,47153.0,0.94734207]
[1641221032198,1.12217029,47154.0,47153.0,1.26716707]
[1641221032398,0.93117029,47154.0,47153.0,1.26716707]
[1641221033000,1.12217029,47154.0,47153.0,1.26716707]
[1641221034100,1.12217029,47154.0,47153.0,0.43914677]
[1641221034501,0.93117029,47154.0,47153.0,0.43914677]
[1641221035002,1.12217029,47154.0,47153.0,1.26692356]
[1641221035801,1.12217029,47154.0,47153.0,0.43914677]
[1641221036302,1.13196429,47154.0,47153.0,0.11932177]
[1641221036502,0.94096429,47154.0,47153.0,0.11932177]
[1641221037102,1.12996429,47154.0,47153.0,0.11932177]
[1641221037301,0.28983677,47154.0,47152.0,1.32024732]
[1641221037505,0.001,47153.0,47152.0,0.14033567]
[1641221038102,0.001,47153.0,47148.0,0.82894742]
[1641221038303,0.09004277,47153.0,47148.0,0.82894742]
[1641221038505,0.09004277,47153.0,47147.0,0.82894742]
[1641221038903,0.001,47148.0,47147.0,0.82894742]
[1641221040514,0.001,47148.0,47145.0,1.38086824]
[1641221040706,0.001,47146.0,47145.0,1.38086824]
[1641221041415,0.001,47146.0,47145.0,1.70935398]
[1641221041608,0.001,47146.0,47145.0,0.52944233]
[1641221042008,1.03522309,47148.0,47145.0,0.52944233]
[1641221042208,0.61103466,47148.0,47147.0,0.68904005]
[1641221042408,0.22772359,47148.0,47147.0,0.68904005]
[1641221042609,0.22772359,47148.0,47147.0,1.01704405]
[1641221042809,0.22772359,47148.0,47147.0,1.02905079]
[1641221043011,0.22772359,47148.0,47147.0,1.14327855]
[1641221043409,1.2003429,47150.0,47147.0,1.14327855]
[1641221043609,0.36005016,47149.0,47147.0,1.70899131]
[1641221044010,0.36005016,47149.0,47148.0,0.1262345]
[1641221044308,0.36005016,47149.0,47148.0,0.26657017]
[1641221044510,1.2003429,47155.0,47151.0,0.50899529]
[1641221044713,1.2003429,47155.0,47154.0,1.00120216]
[1641221045309,1.2003429,47155.0,47154.0,1.3294879]
[1641221045710,1.2003429,47155.0,47154.0,1.63931701]
[1641221045911,1.1363429,47160.0,47154.0,1.63931701]
[1641221046110,1.1363429,47160.0,47159.0,0.18]
[1641221046312,1.1363429,47160.0,47159.0,0.52795134]
[1641221046511,1.1363429,47160.0,47159.0,0.84680034]
[1641221047311,0.9151051,47167.0,47159.0,1.35571135]
[1641221047511,0.82507362,47167.0,47159.0,1.36771502]
[1641221047711,0.82507362,47167.0,47165.0,0.42403715]
[1641221048211,0.82507362,47167.0,47166.0,0.45315567]
[1641221048412,0.20120216,47173.0,47166.0,0.45315567]
[1641221048611,0.02120216,47173.0,47166.0,0.45315567]
[1641221049013,0.186,47173.0,47166.0,0.45315567]
[1641221049513,0.366,47173.0,47166.0,0.45315567]
[1641221050416,0.18,47173.0,47166.0,0.45315567]
[1641221050614,0.15012967,47175.0,47166.0,0.45315567]
[1641221051012,0.367,47173.0,47166.0,0.14033567]
[1641221051512,0.307,47173.0,47166.0,0.14033567]
[1641221051713,0.357,47173.0,47166.0,0.14033567]
[1641221052514,0.05,47173.0,47166.0,0.14033567]
[1641221052814,0.15012967,47175.0,47166.0,0.14033567]
[1641221053014,0.296,47173.0,47166.0,0.14033567]
[1641221053216,0.326,47173.0,47166.0,0.14033567]
[1641221053415,0.316,47173.0,47167.0,0.05]
[1641221054216,0.186,47173.0,47167.0,0.05]
[1641221054413,0.1,47173.0,47167.0,0.05]
[1641221054613,0.15012967,47175.0,47167.0,0.05]
[1641221054813,0.15012967,47175.0,47172.0,0.05]
[1641221055015,0.001,47173.0,47172.0,0.05]
[1641221057114,0.188,47173.0,47172.0,0.05]
[1641221058419,0.001,47173.0,47172.0,0.05]
[1641221059219,0.188,47173.0,47172.0,0.05]
[1641221059421,0.187,47173.0,47172.0,0.05]
[1641221059720,0.187,47173.0,47172.0,0.059794]
[1641221060327,0.14033567,47180.0,47172.0,0.059794]
[1641221060530,0.14033567,47180.0,47178.0,0.05]
[1641221060729,0.001,47179.0,47178.0,0.05]
[1641221061430,0.001,47179.0,47174.0,0.19033567]
[1641221061627,0.001,47175.0,47174.0,0.19033567]
[1641221062228,0.001,47175.0,47174.0,0.14033567]
[1641221062430,0.001,47175.0,47174.0,0.19033567]
[1641221062829,0.001,47175.0,47174.0,0.14033567]
[1641221063230,0.291,47175.0,47174.0,0.14033567]
[1641221063831,0.38102344,47175.0,47174.0,0.14033567]
[1641221064432,0.19102344,47175.0,47174.0,0.14033567]
[1641221065131,0.37802344,47175.0,47174.0,0.14033567]
[1641221066034,0.37802344,47175.0,47168.0,0.05]
[1641221066232,0.37702344,47175.0,47168.0,0.05]
[1641221066639,0.19002344,47175.0,47168.0,0.05]
[1641221066839,0.83927795,47169.0,47166.0,0.14033567]
[1641221067243,0.001,47167.0,47166.0,0.14033567]
[1641221067441,0.131,47167.0,47166.0,0.14033567]
[1641221067640,0.15220519,47167.0,47166.0,0.14033567]
[1641221068942,0.24222863,47167.0,47166.0,0.14033567]
[1641221069242,0.29822863,47167.0,47166.0,0.14033567]
[1641221069442,0.27702344,47167.0,47166.0,0.14033567]
[1641221069641,0.26702344,47167.0,47166.0,0.14033567]
[1641221069841,0.25702344,47167.0,47166.0,0.14033567]
[1641221070544,0.09222828,47167.0,47166.0,0.14033567]
[1641221071147,0.28122828,47167.0,47166.0,0.14033567]
[1641221072445,0.09222828,47167.0,47166.0,0.14033567]
[1641221073145,0.28122828,47167.0,47166.0,0.14033567]
[1641221074549,0.09222828,47167.0,47166.0,0.14033567]
[1641221074749,0.09222828,47167.0,47160.0,0.05]
[1641221074948,0.001,47162.0,47160.0,0.05]
[1641221075149,0.40022828,47167.0,47160.0,0.05]
[1641221075350,0.001,47162.0,47160.0,0.05]
[1641221075550,0.001,47161.0,47160.0,0.05]
[1641221076653,0.001,47161.0,47159.0,0.14033567]
[1641221076852,0.15120484,47167.0,47160.0,0.05]
[1641221077053,0.001,47162.0,47161.0,0.05]
[1641221078455,0.131,47162.0,47159.0,0.14033567]
[1641221078655,0.001,47160.0,47154.0,0.58943296]
[1641221078957,0.28012967,47162.0,47154.0,0.58943296]
[1641221079156,0.2128,47159.0,47154.0,0.58943296]
[1641221079355,0.15121275,47155.0,47154.0,3.296e-05]
[1641221079555,0.009794,47154.0,47140.0,0.05]
[1641221079755,0.13,47147.0,47140.0,0.05]
[1641221079956,0.001,47144.0,47140.0,0.05]
[1641221081156,0.19,47144.0,47140.0,0.05]
[1641221081560,0.19,47144.0,47137.0,0.14033567]
[1641221081561,0.189,47144.0,47137.0,0.14033567]
[1641221081765,0.189,47144.0,47138.0,0.05]
[1641221082157,0.189,47144.0,47143.0,0.05]
[1641221082358,0.189,47144.0,47139.0,0.01200874]
[1641221082359,0.19,47144.0,47139.0,0.01200874]
[1641221082559,0.001,47140.0,47139.0,0.01200874]
[1641221082759,0.1,47140.0,47139.0,0.01200874]
[1641221082960,0.101,47140.0,47132.0,0.14033567]
[1641221083160,0.35996892,47139.0,47132.0,0.14033567]
[1641221083360,0.35996892,47139.0,47132.0,0.17033567]
[1641221083562,0.35996892,47139.0,47133.0,0.1087935]
[1641221083761,0.35996892,47139.0,47133.0,0.12080299]
[1641221083961,0.35996892,47139.0,47136.0,0.05]
[1641221084163,0.183,47140.0,47136.0,0.05]
[1641221084363,0.183,47140.0,47132.0,0.14033567]
[1641221084562,0.009794,47141.0,47139.0,0.05]
[1641221084762,0.001,47140.0,47139.0,0.05]
[1641221085562,0.185,47141.0,47139.0,0.11]
[1641221085761,0.185,47141.0,47140.0,0.18]
[1641221085962,0.185,47141.0,47140.0,0.19200857]
[1641221086765,0.82507362,47146.0,47140.0,0.01200857]
[1641221086964,0.82507362,47146.0,47140.0,0.15234424]
[1641221087165,0.82507362,47146.0,47145.0,0.05]
[1641221087766,1.36138762,47147.0,47145.0,0.05]
[1641221087965,1.22105195,47147.0,47145.0,0.05]
[1641221088566,0.83988436,47146.0,47145.0,0.05]
[1641221089167,1.02888436,47146.0,47145.0,0.05]
[1641221090569,0.92994669,47146.0,47145.0,0.05]
[1641221091169,1.11694669,47146.0,47145.0,0.05]
[1641221092670,0.92994669,47146.0,47145.0,0.05]
[1641221093069,0.09006233,47146.0,47145.0,0.05]
[1641221093270,0.27906233,47146.0,47145.0,0.05]
[1641221094473,0.09006233,47146.0,47145.0,0.05]
[1641221095270,0.27706233,47146.0,47145.0,0.05]
[1641221096672,0.09006233,47146.0,47145.0,0.05]
[1641221097272,0.27506233,47146.0,47145.0,0.05]
[1641221098874,1.11492553,47146.0,47145.0,0.05]
[1641221099274,1.11692553,47146.0,47145.0,0.05]
[1641221099676,1.11692553,47146.0,47145.0,0.059794]
[1641221099874,1.19983791,47148.0,47147.0,0.42420239]
[1641221100074,1.19983791,47148.0,47147.0,0.60420239]
[1641221100275,1.19983791,47148.0,47147.0,0.91836239]